bitfinex-derivatives/quotes_ETHF0:USTF0_20250709
["timestamp","ask_amount","ask_price","bid_price","bid_amount"]
[1752029389921,1.39656869,2606.0,2605.9,3.7584]
[1752029390122,2.0654504,2606.1,2606.0,0.76727]
[1752029390322,4.1353724,2606.1,2606.0,2.0343]
[1752029390524,2.7395504,2606.1,2606.0,2.0343]
[1752029390718,2.7395504,2606.1,2606.0,2.80157]
[1752029391627,2.7395504,2606.1,2606.0,2.0343]
[1752029392925,2.7395504,2606.1,2606.0,3.77627]
[1752029393326,2.7395504,2606.1,2606.0,3.009]
[1752029394530,0.7673,2605.9,2605.8,3.2078]
[1752029394725,2.7395904,2605.9,2605.8,3.2078]
[1752029395029,2.7395904,2605.9,2605.8,4.66233]
[1752029395532,1.9722904,2605.9,2605.8,6.93573]
[1752029395721,2.7395904,2605.9,2605.8,6.93573]
[1752029395919,2.7395904,2605.9,2605.8,6.1684]
[1752029396318,2.7395904,2605.9,2605.8,5.1937]
[1752029396523,2.7395904,2605.9,2605.8,0.6872]
[1752029396724,0.76739,2605.6,2605.5,29.3468]
[1752029397025,2.7396804,2605.6,2605.5,30.034]
[1752029398130,2.7396804,2605.6,2605.5,30.6795]
[1752029400630,0.76745,2605.4,2605.3,3.43698625]
[1752029400831,0.76745,2605.4,2605.3,26.8242]
[1752029400832,1.44155,2605.4,2605.3,26.8242]
[1752029401129,2.7397404,2605.4,2605.3,26.8242]
[1752029401427,2.7397404,2605.4,2605.3,27.59168]
[1752029401428,2.0656404,2605.4,2605.3,27.59168]
[1752029401633,1.2981904,2605.5,2605.4,0.76745]
[1752029401832,1.2981904,2605.5,2605.4,1.45465]
[1752029402037,1.9722904,2605.5,2605.4,2.73585]
[1752029403438,2.7397104,2605.5,2605.4,1.45465]
[1752029403834,2.7397104,2605.5,2605.4,0.6872]
[1752029404034,0.76745,2605.4,2605.3,27.1117]
[1752029404233,1.44155,2605.4,2605.3,27.7989]
[1752029404534,1.44155,2605.4,2605.3,27.59168]
[1752029404834,2.0656304,2605.5,2605.4,0.76745]
[1752029405033,2.0656304,2605.5,2605.4,1.45465]
[1752029405234,2.7397304,2605.5,2605.4,1.45465]
[1752029410550,2.0656304,2605.5,2605.4,1.45465]
[1752029410752,2.7397304,2605.5,2605.4,1.45465]
[1752029411149,1.9722904,2605.5,2605.4,1.45465]
[1752029411343,3.2078,2605.8,2605.7,0.76736]
[1752029411650,4.64925,2605.8,2605.7,1.45456]
[1752029412040,3.97515,2605.8,2605.7,1.45456]
[1752029412246,1.44145,2605.8,2605.7,1.45456]
[1752029412450,2.0655104,2605.9,2605.8,0.76733]
[1752029412655,2.83603688,2605.9,2605.8,0.6872]
[1752029412855,2.16193688,2605.9,2605.8,1.6619]
[1752029413050,3.46012728,2605.9,2605.8,1.6619]
[1752029413248,3.46012728,2605.9,2605.8,0.6872]
[1752029413450,4.13422728,2605.9,2605.8,0.6872]
[1752029414354,3.46012728,2605.9,2605.8,0.6872]
[1752029414554,4.13422728,2605.9,2605.8,0.6872]
[1752029416453,0.76733,2605.8,2605.7,26.118]
[1752029416652,1.44523,2605.8,2605.7,26.8027]
[1752029417150,0.76733,2605.8,2605.7,26.8027]
[1752029417558,1.44523,2605.8,2605.7,26.8027]
[1752029419052,0.76729,2606.0,2605.7,29.0652904]
[1752029419260,0.76729,2606.0,2605.8,5.5361]
[1752029419560,0.76729,2606.0,2605.9,29.8903]
[1752029421560,1.44519,2606.0,2605.9,29.8903]
[1752029421760,0.76729,2606.0,2605.9,29.8903]
[1752029424559,2.0654504,2606.1,2606.0,0.76727]
[1752029424760,3.4597416,2606.1,2606.0,3.67487]
[1752029424959,3.4597416,2606.1,2606.0,4.35797]
[1752029427362,4.1376416,2606.1,2606.0,2.6263]
[1752029427563,0.7673,2605.9,2605.8,0.76733]
[1752029427759,2.7433904,2605.9,2605.8,27.4261]
[1752029428461,2.7433904,2605.9,2605.8,28.19343]
[1752029428664,2.0654904,2605.9,2605.8,28.19343]
[1752029428962,2.0654904,2605.9,2605.8,29.50183]
[1752029429255,2.7433904,2605.9,2605.8,29.50183]
[1752029429461,2.0654904,2605.9,2605.8,29.50183]
[1752029429761,2.0654904,2605.9,2605.8,30.46623]
[1752029430061,1.2981904,2605.9,2605.8,30.46623]
[1752029430261,0.76727,2606.1,2606.0,0.76726]
[1752029430466,2.83848689,2606.1,2606.0,27.55496]
[1752029430963,2.83848689,2606.1,2606.0,28.94336]
[1752029431662,2.83848689,2606.1,2606.0,29.90776]
[1752029432257,2.83845689,2606.1,2606.0,29.90776]
[1752029432463,2.07121689,2606.1,2606.0,29.90776]
[1752029432661,2.83845689,2606.1,2606.0,29.90776]
[1752029433062,4.13664729,2606.1,2606.0,27.55496]
[1752029435160,3.36940729,2606.1,2606.0,27.55496]
[1752029435356,3.36940729,2606.1,2606.0,28.51936]
[1752029436462,1.39331689,2606.1,2606.0,28.51936]
[1752029436660,3.2078,2606.2,2606.1,0.76724]
[1752029436861,4.60140301,2606.2,2606.1,2.75504]
[1752029437062,4.60140301,2606.2,2606.1,3.71944]
[1752029437761,3.2078,2606.2,2606.1,3.71944]
[1752029439869,2.7562304,2606.5,2606.4,0.76715]
[1752029440071,8.03539248,2606.5,2606.4,1.45185]
[1752029440260,1.39346208,2606.5,2606.4,1.45185]
[1752029440466,1.39346208,2606.5,2606.4,2.41625]
[1752029440666,1.9721904,2606.9,2606.8,0.76704]
[1752029440866,4.04345368,2606.9,2606.8,1.45174]
[1752029441167,4.04345368,2606.9,2606.8,0.76704]
[1752029441368,4.04345368,2606.9,2606.8,1.45174]
[1752029441564,4.04345368,2606.9,2606.8,0.76704]
[1752029441764,4.04345368,2606.9,2606.8,1.45174]
[1752029441964,0.76704,2606.8,2606.7,26.86405]
[1752029442164,2.83830328,2606.8,2606.7,27.54875]
[1752029442365,2.07126328,2606.8,2606.7,27.54875]
[1752029443768,2.83830328,2606.8,2606.7,27.54875]
[1752029444164,3.06506328,2606.8,2606.3,6.64478625]
[1752029444367,1.2981904,2606.4,2606.3,4.62398]
[1752029444570,1.9760904,2606.4,2606.3,31.39868]
[1752029444868,2.9698904,2606.4,2606.2,3.43698625]
[1752029445171,1.41678,2606.3,2606.2,3.43698625]
[1752029445374,2.09468,2606.3,2606.2,30.21868625]
[1752029445666,2.09468,2606.3,2606.2,30.98029625]
[1752029445870,2.09468,2606.3,2606.2,30.21308625]
[1752029446170,0.76721,2606.2,2606.1,4.20420625]
[1752029446360,1.40531,2606.2,2606.1,30.97830625]
[1752029446769,0.6381,2606.2,2606.1,30.97830625]
[1752029447170,2.7035004,2606.2,2606.1,30.21108625]
[1752029447370,2.7035004,2606.2,2606.1,29.52998625]
[1752029447571,2.7035004,2606.2,2606.1,30.97632625]
[1752029447874,3.7361004,2606.2,2606.1,29.52998625]
[1752029448568,2.7035004,2606.2,2606.1,30.97632625]
[1752029448959,2.7035004,2606.2,2606.1,30.29722625]
[1752029449162,1.9362904,2606.2,2606.1,30.97632625]
[1752029449569,2.7035004,2606.2,2606.1,30.97632625]
[1752029450072,2.7035004,2606.2,2606.1,27.53934]
[1752029451275,1.9362904,2606.2,2606.1,27.53934]
[1752029455473,3.7361004,2606.2,2606.1,27.53934]
[1752029455667,2.9688904,2606.2,2606.1,27.52934]
[1752029456066,3.7361004,2606.2,2606.1,27.52934]
[1752029456574,2.7035004,2606.2,2606.1,27.52934]
[1752029457374,1.9362904,2606.2,2606.1,27.52934]
[1752029457574,2.7035004,2606.2,2606.1,27.52934]
[1752029458275,1.9362904,2606.2,2606.1,27.52934]
[1752029459065,2.7035004,2606.2,2606.1,27.52934]
[1752029459270,2.7035004,2606.2,2606.1,1.44634]
[1752029459574,1.9362904,2606.2,2606.1,27.52734]
[1752029460775,2.7035004,2606.2,2606.1,27.52734]
[1752029461977,1.9362904,2606.2,2606.1,27.52734]
[1752029462275,2.7035004,2606.2,2606.1,27.52734]
[1752029463774,0.76727,2606.0,2605.9,3.2078]
[1752029463970,3.7361604,2606.0,2605.9,29.2818]
[1752029464174,3.7361604,2606.0,2605.9,3.8869]
[1752029464578,3.7361604,2606.0,2605.9,4.6542]
[1752029464786,1.9362904,2606.0,2605.9,4.6542]
[1752029465180,1.2981904,2606.0,2605.9,4.6542]
[1752029465381,1.9362904,2606.0,2605.9,4.6542]
[1752029467281,1.9362904,2606.0,2605.9,5.6657]
[1752029467481,1.9362904,2606.0,2605.9,6.9968]
[1752029468486,1.9362904,2606.0,2605.9,5.9853]
[1752029468883,1.2981904,2606.0,2605.6,3.2078]
[1752029469087,1.2981904,2605.7,2605.6,4.63859]
[1752029469287,1.2981904,2605.7,2605.6,5.31769]
[1752029469488,4.4117104,2605.9,2605.8,0.76733]
[1752029472191,2.9688904,2605.9,2605.8,0.76733]
[1752029472388,1.2981904,2605.9,2605.8,0.76733]
[1752029472687,2.7035904,2605.9,2605.8,2.45793]
[1752029473992,1.9362904,2605.9,2605.8,1.44643]
[1752029474593,1.9362904,2605.9,2605.8,2.76613]
[1752029476294,2.7035904,2605.9,2605.8,1.9988]
[1752029476990,1.9362904,2605.9,2605.8,2.76613]
[1752029479291,2.7035904,2605.9,2605.8,2.76613]
[1752029479895,1.9362904,2605.9,2605.8,2.76613]
[1752029480097,0.6381,2605.9,2605.8,3.77633]
[1752029480298,3.2078,2606.2,2606.1,0.76724]
[1752029480501,1.39495494,2606.2,2606.1,1.45784]
[1752029480701,1.39495494,2606.2,2606.1,2.46804]
[1752029480892,1.39495494,2606.2,2606.1,28.54504]
[1752029481094,1.39495494,2606.2,2606.1,29.91944]
[1752029482400,0.77291749,2606.4,2606.3,0.76718]
[1752029482698,2.79805633,2606.4,2606.3,1.45778]
[1752029484196,0.76719,2606.3,2606.2,0.76719]
[1752029484499,4.09051924,2606.3,2606.2,1.45779]
[1752029484700,2.6960804,2606.3,2606.2,1.45779]
[1752029484899,4.09063399,2606.3,2606.2,1.45779]
[1752029485101,2.69274399,2606.3,2606.2,1.45779]
[1752029485502,3.32344399,2606.3,2606.2,1.45779]
[1752029485698,2.69274399,2606.3,2606.2,1.45779]
[1752029486603,3.32344399,2606.3,2606.2,1.45779]
[1752029488709,1.39455359,2606.3,2606.2,3.73489]
[1752029490210,2.02525359,2606.3,2606.2,3.73489]
[1752029491714,3.32344399,2606.3,2606.2,3.73489]
[1752029492009,0.76724,2606.1,2606.0,4.13639803]
[1752029492206,2.0654304,2606.1,2606.0,30.90099803]
[1752029492510,2.6961304,2606.1,2606.0,27.4534]
[1752029492712,1.9288904,2606.1,2606.0,28.22066]
[1752029493212,0.6307,2606.1,2606.0,31.66825803]
[1752029493412,0.6307,2606.1,2606.0,33.05325803]
[1752029493712,0.6307,2606.1,2606.0,34.06345803]
[1752029494310,0.6307,2606.1,2606.0,30.61586]
[1752029494610,0.6307,2606.1,2606.0,34.06345803]
[1752029494810,0.6307,2606.1,2606.0,30.61586]
[1752029497715,2.07110789,2606.4,2606.0,31.76678]
[1752029497909,1.39539156,2606.3,2606.2,0.76721]
[1752029498109,1.39539156,2606.3,2606.2,28.54101]
[1752029498309,2.02609156,2606.3,2606.2,28.54101]
[1752029498612,2.07110789,2606.4,2606.3,0.76718]
[1752029498808,3.46606701,2606.4,2606.3,1.45778]
[1752029499009,4.09676701,2606.4,2606.3,1.45778]
[1752029501314,4.09676701,2606.4,2606.3,0.6906]
[1752029501514,4.09676701,2606.4,2606.3,1.45778]
[1752029501916,2.70180789,2606.4,2606.3,1.45778]
[1752029502512,2.03105691,2606.4,2606.3,1.45778]
[1752029502707,0.00575749,2606.4,2606.3,3.79688]
[1752029502910,1.40035932,2606.4,2606.3,3.79688]
[1752029503112,0.63645749,2606.4,2606.3,3.79688]
[1752029503916,1.40360749,2606.4,2606.3,3.79688]
[1752029504318,2.79838791,2606.4,2606.3,3.79688]
[1752029505319,2.79838791,2606.4,2606.3,2.78668]
[1752029507918,2.79838791,2606.4,2606.3,3.74618]
[1752029508422,2.03123791,2606.4,2606.3,3.74618]
[1752029508620,1.40053791,2606.4,2606.3,3.74618]
[1752029509216,1.40053791,2606.4,2606.3,2.979]
[1752029509421,1.44730749,2606.4,2606.3,2.979]
[1752029510223,0.76718,2606.3,2606.2,3.44919578]
[1752029510420,1.44158,2606.3,2606.2,30.19879578]
[1752029510625,1.44158,2606.3,2606.2,30.96600578]
[1752029510819,0.76718,2606.3,2606.2,30.96600578]
[1752029511019,1.44158,2606.3,2606.2,30.96600578]
[1752029512026,1.44158,2606.3,2606.2,31.92550578]
[1752029512525,1.44158,2606.3,2606.2,5.85450578]
[1752029512819,1.44158,2606.3,2606.2,30.19879578]
[1752029513024,1.44158,2606.3,2606.2,29.52019578]
[1752029513425,1.44158,2606.3,2606.2,30.19879578]
[1752029513824,1.44158,2606.3,2606.2,4.12779578]
[1752029514020,1.44158,2606.3,2606.2,30.19779578]
[1752029516328,1.44158,2606.3,2606.2,30.96500578]
[1752029518328,0.00575749,2606.4,2606.3,0.76718]
[1752029518525,0.00575749,2606.4,2606.3,2.13238]
[1752029518827,2.07962837,2606.4,2606.3,4.36278]
[1752029519630,2.84677837,2606.4,2606.3,4.36278]
[1752029520328,2.84677837,2606.4,2606.3,3.40328]
[1752029520729,4.14496877,2606.4,2606.3,3.40328]
[1752029520929,4.14496877,2606.4,2606.3,2.13238]
[1752029521123,4.14496877,2606.4,2606.3,1.3652]
[1752029521323,4.14496877,2606.4,2606.3,0.6866]
[1752029521629,4.14496877,2606.4,2606.3,1.3652]
[1752029521828,4.14496877,2606.4,2606.3,0.6866]
[1752029522230,4.14496877,2606.4,2606.3,1.3652]
[1752029525931,0.76718,2606.3,2606.2,26.069]
[1752029526128,2.84105088,2606.3,2606.2,26.7476]
[1752029526930,0.76721,2606.2,2606.1,29.51819578]
[1752029527121,4.4007004,2606.2,2606.1,29.51819578]
[1752029527326,4.4007004,2606.2,2606.1,26.069]
[1752029527631,5.80078344,2606.2,2606.1,26.7476]
[1752029528831,5.80078344,2606.2,2606.1,0.6786]
[1752029529232,4.81008344,2606.2,2606.1,0.6786]
[1752029530328,0.76724,2606.1,2606.0,3.44919578]
[1752029530530,0.76727,2606.0,2605.9,26.068]
[1752029530727,1.44167,2606.0,2605.9,31.92478096]
[1752029531032,0.76727,2606.0,2605.9,29.7271]
[1752029531234,1.44167,2606.0,2605.9,29.7271]
[1752029531530,1.44167,2606.0,2605.9,33.17853644]
[1752029532228,1.44167,2606.0,2605.9,32.41123644]
[1752029532729,1.44167,2606.0,2605.9,31.45173644]
[1752029535536,1.44167,2606.0,2605.9,30.19803644]
[1752029535834,1.44167,2606.0,2605.9,26.7466]
[1752029536135,1.44167,2606.0,2605.9,30.19803644]
[1752029536336,2.7398604,2606.0,2605.9,30.19803644]
[1752029536538,0.7673,2605.9,2605.8,4.11573644]
[1752029536836,1.4406,2605.9,2605.8,29.52043644]
[1752029537036,3.1166,2605.9,2605.8,29.52043644]
[1752029537235,3.1166,2605.9,2605.8,26.069]
[1752029538735,3.1166,2605.9,2605.8,26.7373]
[1752029539137,2.1259,2605.9,2605.8,26.069]
[1752029539331,2.1259,2605.9,2605.8,26.7373]
[1752029539937,2.1259,2605.9,2605.8,26.069]
[1752029540637,0.76736,2605.7,2605.6,7.31583644]
[1752029540837,2.7388504,2605.7,2605.6,30.6017]
[1752029541033,2.0655504,2605.7,2605.6,30.6017]
[1752029541442,2.7388504,2605.7,2605.6,30.6017]
[1752029542338,2.7388504,2605.7,2605.6,31.8959]
[1752029543135,2.7388504,2605.7,2605.6,5.8269]
[1752029543330,0.76748,2605.3,2605.2,6.65923644]
[1752029543530,2.0656504,2605.4,2605.2,32.9953]
[1752029543838,0.76746,2605.4,2605.3,2.3742]
[1752029544040,0.76746,2605.4,2605.3,3.0425]
[1752029544236,1.44076,2605.4,2605.3,3.0425]
[1752029544431,0.76746,2605.4,2605.3,3.80998]
[1752029544636,1.44076,2605.4,2605.3,3.80998]
[1752029545341,0.76746,2605.4,2605.3,3.80998]
[1752029545545,1.44076,2605.4,2605.3,3.80998]
[1752029545842,0.6733,2605.4,2605.3,3.80998]
[1752029546842,1.44075,2605.4,2605.3,3.80998]
[1752029547447,0.6733,2605.4,2605.3,3.80998]
[1752029547841,0.6733,2605.4,2605.3,29.88098]
[1752029548146,2.0656304,2605.5,2605.4,0.76745]
[1752029548339,0.76744,2605.5,2605.4,3.83475]
[1752029548745,1.44074,2605.5,2605.4,3.83475]
[1752029549345,3.2078,2605.9,2605.4,3.0673]
[1752029549543,0.76739,2605.6,2605.5,1.6927]
[1752029549744,0.76745,2605.4,2605.3,1.3107]
[1752029549948,1.44075,2605.4,2605.3,26.7403]
[1752029550547,0.76754,2605.1,2605.0,3.45143644]
[1752029550743,2.0657304,2605.1,2605.0,26.7633]
[1752029550949,2.7390304,2605.1,2605.0,26.7633]
[1752029551244,2.55791,2605.5,2605.1,0.76753]
[1752029551245,1.6145,2605.5,2605.1,0.76753]
[1752029551549,0.76756,2605.0,2604.9,0.6793]
[1752029551745,2.7390504,2605.0,2604.9,0.6793]
[1752029551946,2.7390504,2605.0,2604.9,27.5196]
[1752029554549,2.7390504,2605.0,2604.9,26.8463]
[1752029554748,3.7142504,2605.0,2604.9,1.3476]
[1752029554949,3.7142504,2605.0,2604.9,26.8353]
[1752029555148,3.7142504,2605.0,2604.9,0.6683]
[1752029557253,2.7390504,2605.0,2604.9,0.6683]
[1752029559756,2.7390504,2605.0,2604.9,1.6817]
[1752029560060,0.76761,2604.9,2604.8,0.76761]
[1752029560259,0.76761,2604.9,2604.8,2.69341]
[1752029560560,0.76761,2604.9,2604.8,3.70681]
[1752029560758,0.76761,2604.9,2604.8,2.9392]
[1752029561955,1.44091,2604.9,2604.8,2.9392]
[1752029563360,0.76761,2604.9,2604.8,1.2575]
[1752029563555,0.76761,2604.9,2604.8,28.0818]
[1752029563758,1.44091,2604.9,2604.8,28.0818]
[1752029565061,1.44091,2604.9,2604.8,28.84942]
[1752029565359,1.44091,2604.9,2604.8,29.86282]
[1752029565560,1.44091,2604.9,2604.8,29.0952]
[1752029569762,1.44091,2604.9,2604.8,29.86282]
[1752029569963,0.76759,2605.0,2604.9,0.76759]
[1752029570162,0.76759,2605.0,2604.9,2.9344]
[1752029570363,0.76759,2605.0,2604.9,3.70199]
[1752029571060,0.76759,2605.0,2604.9,2.9344]
[1752029571267,1.40959,2605.0,2604.9,2.9344]
[1752029571665,1.40959,2605.0,2604.9,3.70199]
[1752029572666,0.76759,2605.0,2604.9,3.70199]
[1752029573162,0.76752,2605.2,2605.1,0.76751]
[1752029573357,0.76751,2605.2,2605.1,27.8182]
[1752029573665,0.76751,2605.2,2605.1,28.58574]
[1752029573865,2.16283874,2605.2,2605.1,29.88334]
[1752029575168,1.39532874,2605.2,2605.1,33.09114]
[1752029575367,0.76749,2605.3,2605.2,0.76749]
[1752029575568,1.40949,2605.3,2605.2,3.74529]
[1752029575868,2.16380773,2605.3,2605.2,3.74529]
[1752029576068,2.80580773,2605.3,2605.2,3.74529]
[1752029576669,2.16380773,2605.3,2605.2,3.74529]
[1752029576972,2.80580773,2605.3,2605.2,3.74529]
[1752029577272,2.16380773,2605.3,2605.2,3.74529]
[1752029577571,1.39631773,2605.3,2605.2,3.74529]
[1752029578071,2.16379773,2605.3,2605.2,3.74529]
[1752029579572,1.40948,2605.3,2605.2,3.74529]
[1752029579770,0.76748,2605.3,2605.2,3.74529]
[1752029579970,1.40948,2605.3,2605.2,3.74529]
[1752029580173,0.76748,2605.3,2605.2,3.74529]
[1752029580471,2.80785963,2605.3,2605.2,3.74529]
[1752029581474,1.40948,2605.3,2605.2,3.74529]
[1752029584281,1.40948,2605.3,2605.2,2.9778]
[1752029584482,1.40948,2605.3,2605.2,3.74531]
[1752029585481,0.76742,2605.6,2605.2,4.2759904]
[1752029585677,0.76742,2605.5,2605.4,3.2078]
[1752029585877,0.76742,2605.5,2605.4,32.3718]
[1752029586376,1.2981904,2605.8,2605.4,32.3718]
[1752029586576,1.2981904,2605.8,2605.6,0.76738]
[1752029586577,0.76737,2605.7,2605.6,0.76738]
[1752029586782,2.0655404,2605.8,2605.7,0.76736]
[1752029587181,2.7075404,2605.8,2605.7,3.038]
[1752029588185,1.9401904,2605.8,2605.7,3.80536]
[1752029588485,0.7673,2605.9,2605.8,0.76731]
[1752029588680,3.97508,2606.0,2605.9,0.7673]
[1752029588881,3.97508,2606.0,2605.9,1.4412]
[1752029589084,3.97508,2606.0,2605.9,3.7772]
[1752029589683,4.61708,2606.0,2605.9,3.0099]
[1752029589977,0.76728,2606.0,2605.9,3.0099]
[1752029590175,1.40928,2606.0,2605.9,3.0099]
[1752029590376,1.40928,2606.0,2605.9,0.6739]
[1752029590578,1.40928,2606.0,2605.9,26.7959]
[1752029590778,2.07648,2606.0,2605.9,0.6739]
[1752029590984,3.03138,2606.0,2605.9,0.6739]
[1752029591184,3.03138,2606.0,2605.9,26.7929]
[1752029592181,2.07648,2606.0,2605.9,26.7929]
[1752029592984,3.03138,2606.0,2605.9,26.7929]
[1752029593287,3.03138,2606.0,2605.9,0.6739]
[1752029593987,2.07648,2606.0,2605.9,0.6739]
[1752029594391,0.7673,2605.9,2605.8,26.115]
[1752029594688,0.7673,2605.9,2605.7,3.8976]
[1752029594689,0.76733,2605.8,2605.7,3.2078]
[1752029594884,0.76733,2605.8,2605.7,29.9927]
[1752029595588,0.76733,2605.8,2605.7,0.6739]
[1752029595788,1.41523,2605.8,2605.7,26.8149]
[1752029595988,1.41523,2605.8,2605.7,0.6739]
[1752029596687,5.99313,2605.8,2605.7,0.6739]
[1752029597283,5.99313,2605.8,2605.2,1.935]
[1752029597284,0.76748,2605.3,2605.2,1.935]
[1752029597485,2.0656704,2605.3,2605.2,28.7299]
[1752029597990,0.76748,2605.3,2605.2,29.7014]
[1752029598880,1.45478,2605.3,2605.2,29.7014]
[1752029600790,1.45478,2605.3,2605.2,28.7299]
[1752029601589,2.7529704,2605.3,2605.2,28.7299]
[1752029601885,2.7529704,2605.3,2605.2,27.4556]
[1752029604395,0.76748,2605.3,2605.2,27.4556]
[1752029604596,0.76748,2605.3,2605.2,28.4271]
[1752029604997,0.76748,2605.3,2605.2,29.6821]
[1752029606995,0.76748,2605.3,2605.2,30.44961]
[1752029608186,0.76748,2605.3,2605.2,29.6821]
[1752029608999,0.76748,2605.3,2605.2,30.44961]
[1752029612200,0.76748,2605.3,2605.2,29.6821]
[1752029612395,0.76748,2605.3,2605.2,28.0547]
[1752029612602,0.76748,2605.3,2605.2,29.6821]
[1752029612902,1.45478,2605.3,2605.2,29.6821]
[1752029613095,0.76748,2605.3,2605.2,29.6821]
[1752029613598,1.45478,2605.3,2605.2,29.6821]
[1752029613801,0.76748,2605.3,2605.2,29.6821]
[1752029614398,0.76748,2605.3,2605.2,30.44961]
[1752029614998,0.76748,2605.3,2605.2,29.6821]
[1752029615396,1.45478,2605.3,2605.2,30.44961]
[1752029615599,0.76748,2605.3,2605.2,30.44961]
[1752029616699,0.76748,2605.3,2605.2,33.65741]
[1752029620998,0.76748,2605.3,2605.2,30.44961]
[1752029621197,0.76748,2605.3,2605.2,33.65741]
[1752029621400,1.45478,2605.3,2605.2,33.65741]
[1752029621601,0.76748,2605.3,2605.2,33.65741]
[1752029622403,1.45478,2605.3,2605.2,33.65741]
[1752029623104,1.45478,2605.3,2605.2,37.10884644]
[1752029623500,0.76746,2605.4,2605.3,0.76748]
[1752029623710,0.76745,2605.5,2605.4,0.76742]
[1752029623899,1.45475,2605.5,2605.4,28.87382]
[1752029624400,1.45475,2605.5,2605.4,28.1064]
[1752029624601,1.45475,2605.5,2605.4,28.87385]
[1752029624802,1.45475,2605.5,2605.4,28.1064]
[1752029625002,1.45475,2605.5,2605.4,28.87385]
[1752029627208,1.45475,2605.5,2605.4,27.4505]
[1752029627602,1.45475,2605.5,2605.4,28.1311]
[1752029628208,1.45475,2605.5,2605.4,28.89855]
[1752029628397,0.76741,2605.6,2605.5,0.76742]
[1752029628601,0.76741,2605.6,2605.5,2.03982]
[1752029628802,2.7965878,2605.6,2605.5,1.953]
[1752029629408,2.7965088,2605.6,2605.5,1.953]
[1752029629907,2.7965088,2605.6,2605.5,1.2724]
[1752029630404,1.39601,2605.6,2605.5,4.72383644]
[1752029630608,1.39601,2605.6,2605.5,5.40443644]
[1752029630907,1.39601,2605.6,2605.5,4.13203644]
[1752029631107,1.39601,2605.6,2605.5,3.45143644]
[1752029631407,0.76742,2605.5,2605.4,29.54943644]
[1752029631608,1.39602,2605.5,2605.4,30.99748644]
[1752029631805,1.39602,2605.5,2605.4,32.35668644]
[1752029632107,1.39602,2605.5,2605.4,31.58923644]
[1752029634509,0.76742,2605.5,2605.4,29.86985]
[1752029635806,1.39602,2605.5,2605.4,29.1024]
[1752029636106,1.39602,2605.5,2605.4,28.1378]
[1752029636307,1.39602,2605.5,2605.4,28.90525]
[1752029637410,0.76738,2605.7,2605.4,28.1378]
[1752029637606,0.76738,2605.7,2605.6,0.76739]
[1752029637811,0.76738,2605.7,2605.6,26.85339]
[1752029638113,1.39598,2605.7,2605.6,27.53399]
[1752029638310,1.39598,2605.7,2605.6,28.21969]
[1752029640315,1.39598,2605.7,2605.6,29.58179]
[1752029640612,1.39598,2605.7,2605.6,28.8144]
[1752029640813,1.39598,2605.7,2605.6,27.4523]
[1752029641005,1.39598,2605.7,2605.6,26.7717]
[1752029641210,1.39598,2605.7,2605.6,27.4523]
[1752029641413,1.39598,2605.7,2605.6,26.7717]
[1752029641614,1.39598,2605.7,2605.6,27.4523]
[1752029642006,2.33658,2605.7,2605.6,26.7656]
[1752029642213,2.33658,2605.7,2605.6,26.085]
[1752029642717,2.33658,2605.7,2605.6,26.7656]
[1752029642909,2.33658,2605.7,2605.6,26.085]
[1752029643109,2.33658,2605.7,2605.6,26.7656]
[1752029643310,2.33658,2605.7,2605.6,26.085]
[1752029643714,2.33658,2605.7,2605.6,26.7656]
[1752029644105,2.33658,2605.7,2605.6,26.085]
[1752029644309,1.39598,2605.7,2605.6,26.7656]
[1752029647718,2.33658,2605.7,2605.6,26.7656]
[1752029648018,2.33658,2605.7,2605.5,3.45035256]
[1752029648019,0.76739,2605.6,2605.5,3.45035256]
[1752029648215,3.6347804,2605.6,2605.5,3.45035256]
[1752029648414,3.6347804,2605.6,2605.5,29.53535256]
[1752029649110,3.6347804,2605.6,2605.5,26.085]
[1752029649310,5.02722639,2605.6,2605.5,26.085]
[1752029649516,5.02722639,2605.6,2605.3,7.31765256]
[1752029649517,0.76745,2605.4,2605.3,7.31765256]
[1752029649718,2.6942404,2605.4,2605.3,34.08325256]
[1752029649916,3.6348404,2605.4,2605.3,34.08325256]
[1752029651812,3.6348404,2605.4,2605.3,7.99825256]
[1752029652117,3.6348404,2605.4,2605.3,34.08325256]
[1752029652717,3.6348404,2605.4,2605.3,30.87545256]
[1752029654321,3.6348404,2605.4,2605.3,30.21595256]
[1752029656220,3.6348404,2605.4,2605.3,3.45035256]
[1752029656422,0.76748,2605.3,2605.2,6.65815256]
[1752029656622,2.39928,2605.3,2605.2,32.74315256]
[1752029658025,2.39928,2605.3,2605.2,29.2928]
[1752029659220,2.39928,2605.3,2605.2,3.2078]
[1752029659416,2.39928,2605.3,2605.1,3.45035256]
[1752029659417,0.76751,2605.2,2605.1,3.45035256]
[1752029659724,0.76754,2605.1,2605.0,3.45035256]
[1752029659916,3.7849304,2605.1,2605.0,3.45035256]
[1752029660627,3.7849304,2605.1,2604.6,7.80672771]
[1752029660628,4.9363104,2605.1,2604.6,7.80672771]
[1752029660824,1.2981904,2604.7,2604.6,29.9973]
[1752029661024,1.9893904,2604.7,2604.6,30.6673]
[1752029661629,1.45885,2604.7,2604.6,30.6673]
[1752029661926,1.45885,2604.7,2604.6,4.5143]
[1752029662226,0.76764,2604.8,2604.6,34.3061904]
[1752029662431,2.0658304,2604.8,2604.7,1.3722]
[1752029662727,1.45885,2604.7,2604.6,4.5143]
[1752029662926,1.45885,2604.7,2604.6,30.6823]
[1752029663124,1.45885,2604.7,2604.6,5.28198]
[1752029663327,0.6912,2604.7,2604.6,31.44998]
[1752029664527,1.45885,2604.7,2604.6,31.44998]
[1752029665827,0.76765,2604.7,2604.6,31.44998]
[1752029666132,1.45885,2604.7,2604.6,31.44998]
[1752029666330,1.45885,2604.7,2604.6,32.82968]
[1752029667632,0.6912,2604.7,2604.6,33.79918]
[1752029668332,2.0658104,2604.9,2604.8,0.76762]
[1752029668633,2.7570104,2604.9,2604.8,27.61162]